bitfinex/quotes_BTCUSD_20250316
["timestamp","ask_amount","ask_price","bid_price","bid_amount"]
[1742152013218,0.02002709,83876.0,83875.0,1.68174691]
[1742152014353,0.0013386,83876.0,83875.0,1.68174691]
[1742152022477,0.0003386,83876.0,83875.0,1.67674691]
[1742152022679,0.0013386,83876.0,83875.0,1.68174691]
[1742152022931,0.0013386,83876.0,83875.0,1.67774691]
[1742152023953,0.0013386,83876.0,83875.0,1.68274691]
[1742152025341,0.0013386,83876.0,83875.0,1.68270691]
[1742152025543,0.0013386,83876.0,83875.0,1.66816606]
[1742152025746,0.0013386,83876.0,83875.0,1.68270691]
[1742152026244,0.0810386,83876.0,83875.0,0.0101693]
[1742152026451,0.08474149,83876.0,83875.0,0.0101693]
[1742152027226,0.33292049,83876.0,83875.0,0.0101693]
[1742152029477,0.33192049,83876.0,83875.0,0.0001693]
[1742152029717,0.33192049,83876.0,83875.0,0.0021693]
[1742152029933,0.33192049,83876.0,83875.0,0.0031693]
[1742152030769,0.63192049,83876.0,83875.0,0.0031693]
[1742152031731,0.63192049,83876.0,83875.0,0.0011693]
[1742152032759,0.63192049,83876.0,83875.0,0.0001693]
[1742152033135,0.63292049,83876.0,83875.0,0.0001693]
[1742152033356,0.63392049,83876.0,83875.0,0.0001693]
[1742152033760,0.63692049,83876.0,83875.0,0.0001693]
[1742152034540,0.65561308,83876.0,83875.0,0.0001693]
[1742152034964,1.07121308,83876.0,83875.0,0.0001693]
[1742152039806,1.07121308,83876.0,83875.0,3e-07]
[1742152040038,1.05252049,83876.0,83875.0,3e-07]
[1742152040273,1.22709532,83876.0,83875.0,3e-07]
[1742152040480,1.10752029,83876.0,83875.0,3e-07]
[1742152040913,1.10752029,83876.0,83875.0,3e-07]
[1742152041126,1.10252029,83876.0,83875.0,3e-07]
[1742152041508,1.10752029,83876.0,83875.0,3e-07]
[1742152042321,1.10852029,83876.0,83875.0,3e-07]
[1742152042729,1.09752029,83876.0,83875.0,3e-07]
[1742152042894,1.10852029,83876.0,83875.0,3e-07]
[1742152043305,1.10352029,83876.0,83875.0,3e-07]
[1742152043505,1.11352029,83876.0,83875.0,3e-07]
[1742152043679,1.10852029,83876.0,83875.0,3e-07]
[1742152044071,1.19384049,83876.0,83875.0,3e-07]
[1742152044525,1.21253359,83876.0,83875.0,3e-07]
[1742152044732,1.21153359,83876.0,83875.0,3e-07]
[1742152045205,1.21653359,83876.0,83875.0,3e-07]
[1742152045639,1.21153359,83876.0,83875.0,3e-07]
[1742152045836,1.21553359,83876.0,83875.0,3e-07]
[1742152046052,1.20553359,83876.0,83875.0,3e-07]
[1742152046244,1.20953359,83876.0,83875.0,3e-07]
[1742152048701,1.19084049,83876.0,83875.0,3e-07]
[1742152050846,1.19084049,83876.0,83843.0,0.1228284]
[1742152050847,0.190825,83847.0,83843.0,0.1228284]
[1742152051213,0.202755,83845.0,83843.0,0.12323966]
[1742152051343,0.00365896,83846.0,83844.0,0.190829]
[1742152051543,0.19082,83849.0,83845.0,0.190827]
[1742152052204,0.011924,83860.0,83853.0,0.011925]
[1742152052409,0.011924,83862.0,83854.0,0.1281]
[1742152052628,0.202723,83858.0,83854.0,0.1281]
[1742152053239,0.190804,83856.0,83854.0,0.1281]
[1742152053456,0.011925,83855.0,83848.0,0.01454085]
[1742152053868,0.011925,83851.0,83848.0,0.01454085]
[1742152054283,0.190818,83850.0,83848.0,0.01454085]
[1742152054783,0.011925,83851.0,83845.0,0.250552]
[1742152054784,0.011925,83851.0,83845.0,0.0478]
[1742152055281,0.190818,83850.0,83845.0,0.238626]
[1742152055488,0.190813,83852.0,83847.0,0.190822]
[1742152055688,0.190813,83852.0,83848.0,0.003]
[1742152056096,0.190813,83852.0,83847.0,0.190822]
[1742152056453,0.190813,83852.0,83847.0,0.202748]
[1742152056866,0.011926,83850.0,83845.0,0.0508]
[1742152057425,0.011926,83850.0,83845.0,0.065726]
[1742152057568,0.190816,83851.0,83846.0,0.202749]
[1742152057992,0.202737,83852.0,83847.0,0.202748]
[1742152058394,0.202737,83852.0,83848.0,0.19082]
[1742152058607,0.202737,83852.0,83848.0,0.19382]
[1742152059014,0.202741,83851.0,83847.0,0.002]
[1742152059410,0.202741,83851.0,83847.0,0.005]
[1742152059649,0.00366225,83850.0,83847.0,0.003]
[1742152059814,0.00366225,83850.0,83846.0,0.202749]
[1742152060025,0.19448025,83850.0,83848.0,0.002]
[1742152060225,0.19448025,83850.0,83847.0,0.003]
[1742152060454,0.011926,83848.0,83847.0,0.005]
[1742152061001,0.01558642,83848.0,83847.0,0.005]
[1742152061814,0.011926,83844.0,83843.0,0.00058066]
[1742152062006,0.202756,83844.0,83843.0,0.00058066]
[1742152062422,0.20641686,83844.0,83843.0,0.00058066]
[1742152063247,0.20641686,83844.0,83843.0,0.00258066]
[1742152063560,0.20641686,83844.0,83843.0,0.00458066]
[1742152064772,0.22511135,83844.0,83843.0,0.00458066]
[1742152068518,0.02235535,83844.0,83843.0,0.00458066]
[1742152068723,0.01869449,83844.0,83843.0,0.00458066]
[1742152069144,0.02235204,83844.0,83843.0,0.00458066]
[1742152071261,0.03427804,83844.0,83843.0,0.00458066]
[1742152071686,0.03461684,83844.0,83843.0,0.00458066]
[1742152074115,0.03461684,83844.0,83843.0,0.00058066]
[1742152074432,0.03581106,83844.0,83843.0,0.00158066]
[1742152074765,0.03461684,83844.0,83843.0,0.00158066]
[1742152075604,0.03461684,83844.0,83843.0,0.00358066]
[1742152075810,0.03461684,83844.0,83843.0,0.00258066]
[1742152076009,0.03461684,83844.0,83843.0,0.00058066]
[1742152076318,0.03581106,83844.0,83843.0,0.00158066]
[1742152076726,0.190863,83830.0,83826.0,0.190871]
[1742152076980,0.190865,83829.0,83826.0,4.11e-05]
[1742152077137,0.20644115,83829.0,83826.0,4.11e-05]
[1742152077347,0.190867,83828.0,83826.0,4.11e-05]
[1742152077944,0.00364715,83827.0,83826.0,4.11e-05]
[1742152078951,0.01557615,83827.0,83826.0,0.0030411]
[1742152079157,0.01557615,83827.0,83826.0,0.0060411]
[1742152079429,0.01557615,83827.0,83826.0,4.11e-05]
[1742152079634,0.01557615,83827.0,83826.0,0.0060411]
[1742152082288,0.03427483,83827.0,83826.0,0.0060411]
[1742152084918,0.03427483,83827.0,83826.0,0.0030411]
[1742152085307,0.03427483,83827.0,83826.0,0.0060411]
[1742152085505,0.03461363,83827.0,83826.0,0.0060411]
[1742152085847,0.03461363,83827.0,83826.0,0.0030411]
[1742152086457,0.03461363,83827.0,83826.0,0.0060411]
[1742152087076,0.08140785,83827.0,83826.0,0.0060411]
[1742152087289,0.14160917,83827.0,83826.0,0.0060411]
[1742152087724,0.14041495,83827.0,83826.0,0.0060411]
[1742152087929,0.14160917,83827.0,83826.0,0.0060411]
[1742152088136,0.14160917,83827.0,83826.0,0.0030411]
[1742152088741,0.14160917,83827.0,83826.0,4.11e-05]
[1742152088946,0.16376888,83827.0,83826.0,0.0020411]
[1742152089154,0.29904888,83827.0,83826.0,0.0030411]
[1742152089356,0.29785466,83827.0,83826.0,0.0030411]
[1742152089920,0.29785466,83827.0,83826.0,0.0020411]
[1742152090125,0.29885466,83827.0,83826.0,0.0020411]
[1742152090561,0.31755528,83827.0,83826.0,0.0020411]
[1742152091359,0.31755528,83827.0,83826.0,4.11e-05]
[1742152091559,0.29885466,83827.0,83826.0,4.11e-05]
[1742152093125,0.16357466,83827.0,83826.0,4.11e-05]
[1742152093253,0.03907466,83827.0,83826.0,4.11e-05]
[1742152096205,0.05777494,83827.0,83826.0,4.11e-05]
[1742152096609,0.03907466,83827.0,83826.0,4.11e-05]
[1742152097334,0.01691495,83827.0,83826.0,4.11e-05]
[1742152099214,0.03561511,83827.0,83826.0,4.11e-05]
[1742152100179,0.05776826,83827.0,83826.0,4.11e-05]
[1742152100736,0.03561511,83827.0,83826.0,4.11e-05]
[1742152102255,0.11661511,83827.0,83826.0,4.11e-05]
[1742152102655,0.11780933,83827.0,83826.0,4.11e-05]
[1742152102910,0.83340933,83827.0,83826.0,4.11e-05]
[1742152103079,0.88101511,83827.0,83826.0,4.11e-05]
[1742152103290,0.88447164,83827.0,83826.0,4.11e-05]
[1742152103516,0.011929,83825.0,83824.0,5e-07]
[1742152103714,0.63261,83822.0,83821.0,7e-07]
[1742152103925,0.63761,83822.0,83821.0,7e-07]
[1742152104260,0.64122813,83822.0,83821.0,7e-07]
[1742152104624,0.66338482,83822.0,83821.0,7e-07]
[1742152105409,0.66338482,83822.0,83807.0,0.0003384]
[1742152105410,0.3,83812.0,83807.0,0.0003384]
[1742152105606,0.502844,83808.0,83807.0,0.00046206]
[1742152106242,0.58745716,83808.0,83807.0,0.00046206]
[1742152106644,0.64507372,83808.0,83807.0,0.00046206]
[1742152108026,0.67048601,83808.0,83807.0,0.00046206]
[1742152108760,0.83886104,83808.0,83807.0,6e-08]
[1742152109421,0.72128601,83808.0,83807.0,6e-08]
[1742152109614,0.75631776,83808.0,83807.0,6e-08]
[1742152109829,0.75231776,83808.0,83807.0,6e-08]
[1742152110298,1.19045861,83808.0,83807.0,6e-08]
[1742152110531,1.24045841,83808.0,83807.0,6e-08]
[1742152110740,1.24045841,83808.0,83793.0,0.001]
[1742152110741,0.502878,83794.0,83793.0,0.001]
[1742152110887,1.21502969,83794.0,83793.0,0.001]
[1742152111129,1.21861829,83794.0,83793.0,0.001]
[1742152111741,1.04826654,83794.0,83793.0,0.001]
[1742152111943,0.78855451,83794.0,83793.0,0.001]
[1742152112141,0.99143251,83794.0,83793.0,0.001]
[1742152112436,0.6796831,83794.0,83793.0,0.001]
[1742152112657,0.4887391,83794.0,83793.0,0.001]
[1742152112876,0.45927923,83794.0,83793.0,0.001]
[1742152113087,0.03174529,83794.0,83793.0,0.001]
[1742152113260,0.02874529,83794.0,83793.0,0.001]
[1742152114163,0.0035886,83794.0,83793.0,0.001]
[1742152114406,0.02215669,83798.0,83794.0,0.189944]
[1742152114600,0.02215669,83798.0,83797.0,0.0786]
[1742152114836,0.02215669,83798.0,83797.0,0.090533]
[1742152115153,0.011932,83803.0,83797.0,0.090533]
[1742152115360,0.202859,83802.0,83797.0,0.0786]
[1742152115599,0.202859,83802.0,83793.0,0.001]
[1742152115600,0.202878,83794.0,83793.0,0.001]
[1742152117658,0.22158525,83794.0,83793.0,0.001]
[1742152119177,0.22158525,83794.0,83793.0,0.0011694]
[1742152119560,0.22517517,83794.0,83793.0,0.0011694]
[1742152120325,0.24728611,83794.0,83793.0,0.0011694]
[1742152122724,0.30547886,83794.0,83793.0,0.0011694]
[1742152123394,1.0210788,83794.0,83793.0,0.0011694]
[1742152124187,0.99896786,83794.0,83793.0,0.0011694]
[1742152124358,1.03399961,83794.0,83793.0,0.0011694]
[1742152125112,1.03699961,83794.0,83793.0,0.0011694]
[1742152125822,1.03999961,83794.0,83793.0,0.0011694]
[1742152126204,1.00496786,83794.0,83793.0,0.0011694]
[1742152128882,1.00996786,83794.0,83793.0,4e-07]
[1742152129092,0.207883,83792.0,83791.0,3e-07]
[1742152129289,0.34443722,83792.0,83791.0,3e-07]
[1742152129489,0.34682389,83792.0,83791.0,3e-07]
[1742152131074,0.36553393,83792.0,83791.0,3e-07]
[1742152131276,0.66953393,83792.0,83791.0,3e-07]
[1742152131893,0.67353393,83792.0,83791.0,3e-07]
[1742152132699,0.66853393,83792.0,83791.0,3e-07]
[1742152132918,0.67353393,83792.0,83791.0,3e-07]
[1742152133278,0.66853393,83792.0,83791.0,3e-07]
[1742152134513,1.08413387,83792.0,83791.0,3e-07]
[1742152139134,0.94877387,83792.0,83791.0,3e-07]
[1742152139732,0.94477387,83792.0,83791.0,3e-07]
[1742152140034,0.94877387,83792.0,83791.0,3e-07]
[1742152140596,0.94477387,83792.0,83791.0,3e-07]
[1742152140797,0.94777387,83792.0,83791.0,3e-07]
[1742152140995,0.44489087,83792.0,83791.0,3e-07]
[1742152141197,0.43811483,83792.0,83791.0,3e-07]
[1742152141819,0.43411483,83792.0,83791.0,3e-07]
[1742152142015,0.43311483,83792.0,83791.0,3e-07]
[1742152142534,0.43211483,83792.0,83791.0,3e-07]
[1742152143744,0.43111483,83792.0,83791.0,3e-07]
[1742152144417,0.43145383,83792.0,83791.0,3e-07]
[1742152145173,0.43145383,83792.0,83791.0,0.0470003]
[1742152145174,0.00391989,83792.0,83791.0,0.0470003]
[1742152145402,0.000339,83792.0,83791.0,0.0470003]
[1742152145640,0.00378701,83792.0,83791.0,0.0470003]
[1742152145853,0.03442867,83792.0,83791.0,0.0470003]
[1742152147935,0.02249467,83792.0,83791.0,0.2498853]
[1742152148139,0.01904666,83792.0,83791.0,0.3254853]
[1742152148344,0.01904666,83792.0,83791.0,0.33757591]
[1742152148775,0.01904666,83792.0,83791.0,0.3135513]
[1742152149109,0.02249467,83792.0,83791.0,0.1226003]
[1742152149643,0.00378701,83792.0,83791.0,0.1226003]
[1742152149840,0.01572101,83792.0,83791.0,3e-07]
[1742152151161,0.00378701,83792.0,83791.0,3e-07]
[1742152152787,0.02249439,83792.0,83791.0,3e-07]
[1742152154087,0.00378701,83792.0,83791.0,3e-07]
[1742152154424,0.01572101,83792.0,83791.0,3e-07]
[1742152158169,0.00378701,83792.0,83791.0,3e-07]
[1742152159252,0.01572101,83792.0,83791.0,3e-07]
[1742152160392,0.00378701,83792.0,83791.0,3e-07]
[1742152160795,0.01572101,83792.0,83791.0,3e-07]
[1742152161663,0.01691523,83792.0,83791.0,3e-07]
[1742152162334,0.01572101,83792.0,83791.0,3e-07]
[1742152166062,0.03442953,83792.0,83791.0,3e-07]
[1742152166461,0.03562375,83792.0,83791.0,3e-07]
[1742152167031,0.01691523,83792.0,83791.0,3e-07]
[1742152168310,0.01791523,83792.0,83791.0,3e-07]
[1742152168512,0.01891523,83792.0,83791.0,3e-07]
[1742152169140,0.15423523,83792.0,83791.0,3e-07]
[1742152171906,0.57913523,83792.0,83791.0,3e-07]
[1742152172039,0.57794101,83792.0,83791.0,3e-07]
[1742152172244,0.016934,83790.0,83789.0,6e-07]
[1742152172485,0.1414514,83790.0,83789.0,8.7e-07]
[1742152173998,0.1454514,83790.0,83789.0,8.7e-07]
[1742152174369,0.46416304,83790.0,83789.0,8.7e-07]
[1742152174572,0.46296882,83790.0,83789.0,8.7e-07]
[1742152174791,0.016934,83788.0,83787.0,1.7e-07]
[1742152175036,0.48812802,83788.0,83787.0,1.7e-07]
[1742152175183,0.49025698,83788.0,83787.0,1.7e-07]
[1742152175997,0.49325698,83788.0,83787.0,1.7e-07]
[1742152176246,0.50779783,83788.0,83787.0,1.7e-07]
[1742152176394,0.207933,83771.0,83770.0,0.0001693]
[1742152176603,1.18339768,83771.0,83770.0,3e-07]
[1742152176834,1.18220346,83771.0,83770.0,3e-07]
[1742152177059,1.30177849,83771.0,83770.0,3e-07]
[1742152177403,1.32549365,83771.0,83770.0,3e-07]
[1742152177639,1.32949365,83771.0,83770.0,3e-07]
[1742152177799,1.32549365,83771.0,83770.0,3e-07]
[1742152178034,1.20591862,83771.0,83770.0,3e-07]
[1742152178248,1.21091862,83771.0,83770.0,3e-07]
[1742152178448,1.20591862,83771.0,83770.0,3e-07]
[1742152178906,1.21091862,83771.0,83770.0,3e-07]
[1742152179480,1.22298099,83771.0,83770.0,3e-07]
[1742152180640,1.10298099,83771.0,83770.0,3e-07]
[1742152180863,1.07926583,83771.0,83770.0,3e-07]
[1742152181292,0.77926583,83771.0,83770.0,3e-07]
[1742152181525,0.63184346,83771.0,83770.0,3e-07]
[1742152181694,0.01331052,83771.0,83770.0,3e-07]
[1742152181922,0.02024752,83771.0,83770.0,3e-07]
[1742152182091,0.01524752,83771.0,83770.0,3e-07]
[1742152182275,0.01824752,83771.0,83770.0,3e-07]
[1742152182682,0.01524752,83771.0,83770.0,3e-07]
[1742152183108,0.01644174,83771.0,83770.0,3e-07]
[1742152183488,0.01844174,83771.0,83770.0,3e-07]
[1742152183873,0.01644174,83771.0,83770.0,3e-07]
[1742152185467,0.02044174,83771.0,83770.0,3e-07]
[1742152185673,0.03915617,83771.0,83770.0,3e-07]
[1742152186083,0.04315617,83771.0,83770.0,3e-07]
[1742152186842,0.03915617,83771.0,83770.0,3e-07]
[1742152187062,0.03815617,83771.0,83770.0,3e-07]
[1742152187274,0.45375611,83771.0,83770.0,3e-07]
[1742152187490,0.43684746,83771.0,83770.0,3e-07]
[1742152188325,0.43384746,83771.0,83770.0,3e-07]
[1742152188691,0.43084746,83771.0,83770.0,3e-07]
[1742152191117,0.43184746,83771.0,83770.0,3e-07]
[1742152191316,0.73284746,83771.0,83770.0,3e-07]
[1742152191607,0.73184746,83771.0,83770.0,3e-07]
[1742152191739,0.73084746,83771.0,83770.0,3e-07]
[1742152191946,0.73184746,83771.0,83770.0,3e-07]
[1742152192146,0.73318606,83771.0,83770.0,3e-07]
[1742152192626,0.86678606,83771.0,83770.0,3e-07]
[1742152193204,0.86578606,83771.0,83770.0,3e-07]
[1742152193544,0.86678606,83771.0,83770.0,3e-07]
[1742152193746,0.86778606,83771.0,83770.0,3e-07]
[1742152194152,0.87178606,83771.0,83770.0,3e-07]
[1742152194400,0.86878606,83771.0,83770.0,3e-07]
[1742152194588,0.87378606,83771.0,83770.0,3e-07]
[1742152195088,0.99336109,83771.0,83770.0,3e-07]
[1742152195315,1.01784692,83771.0,83770.0,3e-07]
[1742152195531,0.89827189,83771.0,83770.0,3e-07]
[1742152196001,0.9169884,83771.0,83770.0,3e-07]
[1742152197937,0.89827189,83771.0,83770.0,3e-07]
[1742152198851,0.95721152,83771.0,83770.0,3e-07]
[1742152199086,1.07678655,83771.0,83770.0,3e-07]
[1742152199542,0.95721152,83771.0,83770.0,3e-07]
[1742152200220,0.95321152,83771.0,83770.0,3e-07]
[1742152200464,0.87372589,83771.0,83770.0,3e-07]
[1742152200715,0.88552589,83771.0,83770.0,3e-07]
[1742152200917,0.87658606,83771.0,83770.0,3e-07]
[1742152201592,0.87158606,83771.0,83770.0,3e-07]
[1742152201889,0.87058606,83771.0,83770.0,3e-07]
[1742152202091,0.87458606,83771.0,83770.0,3e-07]
[1742152202316,0.43918606,83771.0,83770.0,3e-07]
[1742152202525,0.57458606,83771.0,83770.0,3e-07]
[1742152203338,0.43918606,83771.0,83770.0,3e-07]
[1742152204359,0.43118606,83771.0,83770.0,3e-07]
[1742152204562,0.43218606,83771.0,83770.0,3e-07]
[1742152204787,0.43318606,83771.0,83770.0,3e-07]
[1742152206337,0.42124906,83771.0,83770.0,0.0119373]
[1742152206539,0.42124906,83771.0,83770.0,0.2782363]
[1742152206986,0.41793854,83771.0,83770.0,0.2782363]
[1742152207190,0.41693854,83771.0,83770.0,0.2782363]
[1742152207527,0.41923371,83771.0,83770.0,0.0753003]
[1742152210025,0.41923371,83771.0,83770.0,0.0872373]
[1742152210807,0.00363377,83771.0,83770.0,0.0872373]
[1742152211017,0.0003386,83771.0,83770.0,0.0872373]
[1742152211619,0.0003386,83771.0,83770.0,0.1355373]
[1742152212440,0.0003386,83771.0,83770.0,0.13673089]
[1742152213101,0.0003386,83771.0,83770.0,0.13773089]
[1742152213411,0.0003386,83771.0,83770.0,0.13873089]
[1742152213611,0.01904947,83771.0,83770.0,0.13873089]
[1742152213813,0.01904947,83771.0,83770.0,0.1365373]
[1742152214069,0.01904947,83771.0,83770.0,0.1375373]
[1742152214279,0.01904947,83771.0,83770.0,0.1365373]
[1742152214453,0.01904947,83771.0,83770.0,0.1375373]
[1742152220228,0.02235467,83771.0,83770.0,0.1375373]
[1742152221040,0.02235467,83771.0,83770.0,0.0020003]
[1742152221041,0.03429167,83771.0,83770.0,0.0020003]
[1742152221469,0.0155808,83771.0,83770.0,0.0020003]
[1742152223143,0.0036438,83771.0,83770.0,0.0020003]
[1742152223575,0.0155808,83771.0,83770.0,0.0020003]
[1742152223793,0.2065768,83771.0,83770.0,0.0020003]
[1742152224455,0.2065768,83771.0,83770.0,0.0010003]
[1742152224806,0.22528858,83771.0,83770.0,0.0020003]
[1742152225619,0.21335158,83771.0,83770.0,0.0020003]
[1742152225781,0.21335158,83771.0,83770.0,0.0010003]
[1742152225981,0.21335158,83771.0,83770.0,0.0020003]
[1742152226874,0.02235558,83771.0,83770.0,0.0020003]
[1742152227337,0.0036438,83771.0,83770.0,0.0139373]
[1742152227655,0.0003386,83771.0,83770.0,0.0139373]
[1742152227946,0.00364255,83771.0,83770.0,0.0954373]
[1742152228148,0.0003386,83771.0,83770.0,0.1445373]
[1742152229479,0.0003386,83771.0,83770.0,0.1435373]
[1742152229704,0.0003386,83771.0,83770.0,0.1445373]
[1742152229913,0.0013386,83771.0,83770.0,0.1435373]
[1742152230137,0.0013386,83771.0,83770.0,0.1465373]
[1742152234867,0.02004896,83771.0,83770.0,0.1465373]
[1742152237887,0.0013386,83771.0,83770.0,0.1465373]
[1742152238161,0.0013386,83771.0,83770.0,0.14773087]
[1742152238810,0.0013386,83771.0,83770.0,0.1465373]
[1742152241966,0.0013386,83771.0,83770.0,0.0159373]
[1742152242319,0.00662915,83771.0,83770.0,0.0159373]
[1742152242529,0.02004918,83771.0,83770.0,0.0159373]
[1742152242726,0.01904918,83771.0,83770.0,0.0149373]
[1742152243119,0.01904918,83771.0,83770.0,0.0179373]
[1742152243516,0.01904918,83771.0,83770.0,0.0149373]
[1742152243937,0.02433924,83771.0,83770.0,0.0179373]
[1742152247665,0.02433924,83771.0,83770.0,1.5179373]
[1742152247902,0.01904918,83771.0,83770.0,1.5179373]
[1742152248427,0.01904918,83771.0,83770.0,0.0179373]
[1742152248631,0.01904918,83771.0,83770.0,0.0060003]
[1742152248832,0.01756588,83771.0,83770.0,0.0060003]
[1742152249266,0.06416588,83771.0,83770.0,0.0060003]
[1742152249598,0.06416588,83771.0,83770.0,3e-07]
[1742152250150,0.00562888,83771.0,83770.0,0.0040003]
[1742152250391,0.01756588,83771.0,83770.0,0.0040003]
[1742152250593,0.00562888,83771.0,83770.0,0.0040003]
[1742152250933,0.0003386,83771.0,83770.0,0.0040003]
[1742152251141,0.00562888,83771.0,83770.0,0.0040003]
[1742152251376,0.0003386,83771.0,83770.0,0.0040003]
[1742152251534,0.00562888,83771.0,83770.0,0.0040003]
[1742152251739,0.0003386,83771.0,83770.0,0.0040003]
[1742152252058,0.00562888,83771.0,83770.0,0.0040003]
[1742152252273,0.02434029,83771.0,83770.0,0.0040003]
[1742152252721,0.02434029,83771.0,83770.0,0.0159373]
[1742152253033,0.01905001,83771.0,83770.0,0.0159373]
[1742152253252,0.0003386,83771.0,83770.0,0.0159373]
[1742152253660,0.00562637,83771.0,83770.0,0.0040003]
[1742152256254,0.01756337,83771.0,83770.0,0.0040003]
[1742152256468,0.03627476,83771.0,83770.0,0.0040003]
[1742152256657,0.02433776,83771.0,83770.0,0.0040003]
[1742152257676,0.00562637,83771.0,83770.0,0.0040003]
[1742152260542,0.01756337,83771.0,83770.0,0.0040003]
[1742152265020,0.0362768,83771.0,83770.0,0.0040003]
[1742152265945,0.03747102,83771.0,83770.0,0.0040003]
[1742152266359,0.0362768,83771.0,83770.0,0.0040003]
[1742152266566,0.03747102,83771.0,83770.0,0.0040003]
[1742152266924,0.01875759,83771.0,83770.0,0.0040003]
[1742152267119,0.01875759,83771.0,83770.0,0.0020003]
[1742152267323,0.09775759,83771.0,83770.0,0.0020003]
[1742152267742,0.09775759,83771.0,83770.0,3e-07]
[1742152269352,0.39775759,83771.0,83770.0,3e-07]
[1742152269559,0.85876331,83771.0,83770.0,3e-07]
[1742152269771,0.86376331,83771.0,83770.0,3e-07]
[1742152270156,0.98333834,83771.0,83770.0,3e-07]
[1742152270158,0.86376331,83771.0,83770.0,3e-07]
[1742152270735,0.86776331,83771.0,83770.0,3e-07]
[1742152270936,0.88030416,83771.0,83770.0,3e-07]
[1742152271143,0.87830416,83771.0,83770.0,3e-07]
[1742152271562,0.89702123,83771.0,83770.0,3e-07]
[1742152271980,0.90202123,83771.0,83770.0,3e-07]
[1742152272607,0.90702123,83771.0,83770.0,3e-07]
[1742152273012,0.95702103,83771.0,83770.0,3e-07]
[1742152273439,0.98070631,83771.0,83770.0,3e-07]
[1742152273642,1.10028134,83771.0,83770.0,3e-07]
[1742152275475,0.41559994,83761.0,83718.0,0.01204761]
[1742152275735,0.011944,83721.0,83712.0,0.2364]
[1742152275882,0.011943,83730.0,83717.0,0.011945]
[1742152276091,0.011942,83738.0,83727.0,0.191095]
[1742152276299,0.191078,83736.0,83729.0,0.191091]
[1742152276615,0.20302,83736.0,83729.0,0.20344398]
[1742152276825,0.01719326,83735.0,83729.0,0.20344398]
[1742152277029,0.00525126,83735.0,83731.0,0.191087]
[1742152277226,0.00525126,83735.0,83729.0,0.20344398]
[1742152277227,0.011942,83734.0,83729.0,0.00041098]
[1742152277426,0.191085,83733.0,83729.0,0.00041098]
[1742152277659,0.011943,83730.0,83729.0,0.00041098]
[1742152277867,0.191089,83731.0,83729.0,0.00041098]
[1742152278290,0.093143,83730.0,83729.0,0.00041098]
[1742152278490,0.09839426,83730.0,83729.0,0.00041098]
[1742152279103,0.09958848,83730.0,83729.0,0.00041098]
[1742152279715,0.09839426,83730.0,83729.0,0.00041098]
[1742152279916,0.09958848,83730.0,83729.0,0.00041098]
[1742152280404,0.09839426,83730.0,83729.0,0.00041098]
[1742152282252,0.09958848,83730.0,83729.0,0.00041098]
[1742152283112,0.09839426,83730.0,83729.0,0.00041098]
[1742152284243,0.5139942,83730.0,83729.0,0.00041098]
[1742152284791,0.53271611,83730.0,83729.0,0.00041098]
[1742152285449,0.83271611,83730.0,83729.0,0.00041098]
[1742152285639,0.011945,83714.0,83712.0,0.23619841]
[1742152285849,0.203071,83714.0,83712.0,0.23632214]
[1742152286020,0.01719283,83713.0,83712.0,0.23632214]
[1742152288723,0.01819283,83713.0,83712.0,0.23632214]
[1742152289894,0.01938705,83713.0,83712.0,0.00012373]
[1742152291395,0.02238705,83713.0,83712.0,0.00012373]
[1742152291810,0.02138705,83713.0,83712.0,0.00012373]
[1742152292029,0.40028705,83713.0,83712.0,0.00012373]
[1742152292227,0.40028705,83713.0,83705.0,0.0001695]
[1742152292228,0.632891,83706.0,83705.0,5.3e-07]
[1742152292435,0.768251,83706.0,83705.0,5.3e-07]
[1742152292787,0.4917468,83699.0,83698.0,5.3e-07]
[1742152292985,0.6779078,83699.0,83698.0,7.4e-07]
[1742152293186,0.627908,83699.0,83698.0,7.4e-07]
[1742152293388,0.76847367,83699.0,83698.0,7.4e-07]
[1742152294048,0.77347367,83699.0,83698.0,7.4e-07]
[1742152294264,0.76847367,83699.0,83698.0,7.4e-07]
[1742152295306,0.9157808,83699.0,83698.0,7.4e-07]
[1742152295728,0.84920557,83699.0,83698.0,7.4e-07]
[1742152295933,0.582037,83687.0,83671.0,0.0008]
[1742152296144,1.04853694,83687.0,83686.0,3e-07]
[1742152296351,0.64751385,83672.0,83671.0,1e-06]
[1742152296552,0.768333,83672.0,83671.0,1e-06]
[1742152296701,0.77349583,83672.0,83671.0,1e-06]
[1742152296912,0.89307086,83672.0,83671.0,1e-06]
[1742152297276,0.77349583,83672.0,83671.0,1e-06]
[1742152297522,0.77549583,83672.0,83671.0,1e-06]
[1742152297764,0.78262532,83672.0,83671.0,1e-06]
[1742152297949,0.011953,83657.0,83652.0,0.191267]
[1742152298153,0.203202,83661.0,83654.0,0.011954]
[1742152298360,0.203202,83661.0,83652.0,0.011954]
[1742152298361,0.011953,83658.0,83652.0,0.011954]
[1742152298562,0.011953,83661.0,83654.0,0.191263]
[1742152298760,0.19334725,83672.0,83654.0,0.191263]
[1742152298761,0.00012325,83672.0,83661.0,0.011953]
[1742152298962,0.00012325,83672.0,83662.0,0.011952]
[1742152299292,0.00512325,83672.0,83669.0,0.191229]
[1742152299504,0.00476709,83671.0,83670.0,0.011951]
[1742152299839,0.00512325,83672.0,83670.0,0.011951]
[1742152299840,0.00012325,83672.0,83671.0,0.203176]
[1742152300334,0.01885673,83672.0,83671.0,0.203176]
[1742152304168,0.00012325,83672.0,83671.0,0.203176]
[1742152304793,0.00012325,83672.0,83671.0,0.20437097]
[1742152304995,0.00012325,83672.0,83671.0,0.203176]
[1742152305328,0.00112325,83672.0,83671.0,0.20437097]
[1742152305575,0.00112325,83672.0,83671.0,0.21891182]
[1742152305764,0.00112325,83672.0,83671.0,1.71891182]
[1742152305972,0.00112325,83672.0,83671.0,1.72983833]
[1742152306080,0.00112325,83672.0,83671.0,2.15353833]
[1742152306288,2.5e-07,83672.0,83671.0,2.15353833]
[1742152307107,0.0003388,83713.0,83711.0,0.190132]
[1742152307317,0.0004626,83713.0,83712.0,0.011945]
[1742152307633,0.01918875,83713.0,83711.0,0.190132]
[1742152308029,0.00476709,83712.0,83711.0,0.202077]
[1742152308453,0.01918875,83713.0,83712.0,0.011945]
[1742152308856,0.02018875,83713.0,83712.0,0.011945]
[1742152309633,0.01918875,83713.0,83712.0,0.011945]
[1742152310039,0.01918875,83713.0,83712.0,0.013945]
[1742152310842,0.01918875,83713.0,83712.0,0.002]
[1742152311045,0.22226275,83713.0,83712.0,0.002]
[1742152311251,0.2035366,83713.0,83712.0,0.002]
[1742152311646,0.20837431,83713.0,83712.0,0.005]
[1742152312118,0.20837431,83713.0,83712.0,0.002]